fUST/lending_fUST_20240917
["ID","MTS","AMOUNT","RATE_DAILY","PERIOD"]
[338370541,1726567847927,-151.0,0.00018926,2]
[338370542,1726567847937,-572.724514,0.00018926,2]
[338370543,1726567847947,-572.724514,0.00018926,2]
[338370544,1726567847957,-255.649991,0.00018926,2]
[338370545,1726567847967,-151.0,0.00018926,2]
[338370546,1726567847978,-255.649991,0.00018926,2]
[338370547,1726567847987,-151.0,0.00018926,2]
[338370548,1726567847998,-255.649991,0.00018926,2]
[338370549,1726567848009,-255.649991,0.00018926,2]
[338370550,1726567848019,-255.649991,0.00018926,2]
[338370551,1726567848030,-255.649991,0.00018926,2]
[338370552,1726567848039,-151.0,0.00018926,2]
[338370553,1726567848048,-151.0,0.00018926,2]
[338370554,1726567848059,-151.0,0.00018926,2]
[338370555,1726567848068,-172.800106,0.00018926,2]
[338370556,1726567848077,-151.0,0.00018926,2]
[338370557,1726567848087,-172.800106,0.00018926,2]
[338370558,1726567848098,-151.0,0.00018926,2]
[338370559,1726567848108,-151.0,0.00018926,2]
[338370560,1726567848118,-172.800106,0.00018926,2]
[338370561,1726567848128,-172.800106,0.00018926,2]
[338370562,1726567848140,-151.0,0.00018926,2]
[338370563,1726567848151,-151.0,0.00018926,2]
[338370564,1726567848161,-151.0,0.00018926,2]
[338370565,1726567848172,-151.0,0.00018926,2]
[338370566,1726567848182,-151.0,0.00018926,2]
[338370567,1726567848192,-1090.355152,0.00018926,2]
[338370568,1726567848202,-1090.355152,0.00018926,2]
[338370569,1726567848212,-1090.355152,0.00018926,2]
[338370570,1726567848221,-1090.355152,0.00018926,2]
[338370571,1726567848232,-1090.355152,0.00018926,2]
[338370572,1726567848244,-1090.355152,0.00018926,2]
[338370573,1726567848254,-1090.355152,0.00018926,2]
[338370574,1726567848265,-1090.355152,0.00018926,2]
[338370575,1726567848274,-1090.355152,0.00018926,2]
[338370576,1726567848284,-1090.355152,0.00018926,2]
[338370577,1726567848294,-174.773879,0.00018926,2]
[338370578,1726567848304,-174.773879,0.00018926,2]
[338370579,1726567848314,-174.773879,0.00018926,2]
[338370580,1726567848323,-174.773879,0.00018926,2]
[338370581,1726567848333,-151.0,0.00018926,2]
[338370582,1726567848344,-210.224136,0.00018926,2]
[338370583,1726567848354,-151.0,0.00018926,2]
[338370584,1726567848363,-210.224136,0.00018926,2]
[338370585,1726567848374,-210.224136,0.00018926,2]
[338370586,1726567848384,-210.224136,0.00018926,2]
[338370587,1726567848393,-210.224136,0.00018926,2]
[338370588,1726567848403,-151.0,0.00018926,2]
[338370589,1726567848412,-210.224136,0.00018926,2]
[338370590,1726567848423,-151.0,0.00018926,2]
[338370591,1726567848435,-210.224136,0.00018926,2]
[338370592,1726567848444,-163.609116,0.00018926,2]
[338370593,1726567848455,-210.224136,0.00018926,2]
[338370594,1726567848466,-210.224136,0.00018926,2]
[338370595,1726567848475,-210.224136,0.00018926,2]
[338370596,1726567848486,-151.0,0.00018926,2]
[338370597,1726567848496,-151.0,0.00018926,2]
[338370598,1726567848505,-151.0,0.00018926,2]
[338370599,1726567848515,-151.0,0.00018926,2]
[338370600,1726567848525,-151.0,0.00018926,2]
[338370601,1726567848534,-151.0,0.00018926,2]
[338370602,1726567848544,-151.0,0.00018926,2]
[338370603,1726567848554,-151.0,0.00018926,2]
[338370604,1726567848563,-207.743638,0.00018926,2]
[338370605,1726567848572,-151.0,0.00018926,2]
[338370606,1726567848583,-151.0,0.00018926,2]
[338370607,1726567848593,-151.0,0.00018926,2]
[338370608,1726567848603,-151.0,0.00018926,2]
[338370609,1726567848612,-205.484561,0.00018926,2]
[338370610,1726567848623,-151.0,0.00018926,2]
[338370611,1726567848632,-212.653544,0.00018926,2]
[338370612,1726567848642,-3205.845086,0.00018926,2]
[338370613,1726567848652,-3205.845086,0.00018926,2]
[338370614,1726567848662,-3205.845086,0.00018926,2]
[338370615,1726567848671,-3205.845086,0.00018926,2]
[338370616,1726567848681,-3205.845086,0.00018926,2]
[338370617,1726567848691,-3205.845086,0.00018926,2]
[338370618,1726567848700,-3205.845086,0.00018926,2]
[338370619,1726567848710,-3205.845086,0.00018926,2]
[338370620,1726567848719,-3205.845086,0.00018926,2]
[338370621,1726567848729,-3205.845086,0.00018926,2]
[338370622,1726567848738,-306.6786405,0.00018928,2]
[338370623,1726567848748,-151.0,0.0001893,2]
[338370624,1726567848758,-151.0,0.0001893,2]
[338370625,1726567848768,-151.0,0.0001893,2]
[338370626,1726567848778,-172.800106,0.0001893,2]
[338370627,1726567848787,-151.0,0.0001893,2]
[338370628,1726567848797,-172.800106,0.0001893,2]
[338370629,1726567848806,-174.773879,0.0001893,2]
[338370630,1726567848816,-174.773879,0.0001893,2]
[338370631,1726567848825,-3000.0,0.0001893,2]
[338370632,1726567848835,-1090.355152,0.0001894,2]
[338370633,1726567848844,-1090.355152,0.0001894,2]
[338370634,1726567848854,-210.224136,0.0001894,2]
[338370635,1726567848865,-210.224136,0.0001894,2]
[338370636,1726567848875,-151.0,0.0001894,2]
[338370637,1726567848885,-3205.845086,0.0001894,2]
[338370638,1726567848898,-3205.845086,0.0001894,2]
[338370639,1726567848908,-3000.0,0.0001894,2]
[338370640,1726567848918,-151.0,0.00018942,2]
[338370641,1726567848928,-151.0,0.00018942,2]
[338370642,1726567848938,-155.207639,0.00018942,2]
[338370643,1726567848948,-155.207639,0.00018942,2]
[338370644,1726567848959,-151.0,0.00018942,2]
[338370645,1726567848969,-1820.420461,0.00018942,2]
[338370646,1726567848981,-1820.420461,0.00018942,2]
[338370647,1726567848991,-151.0,0.00018942,2]
[338370648,1726567849000,-151.0,0.00018942,2]
[338370649,1726567849168,-151.0,0.00018942,2]
[338370650,1726567849178,-572.724514,0.00018942,2]
[338370651,1726567849188,-572.724514,0.00018942,2]
[338370652,1726567849197,-255.649991,0.00018942,2]
[338370653,1726567849206,-151.0,0.00018942,2]
[338370654,1726567849216,-255.649991,0.00018942,2]
[338370655,1726567849226,-151.0,0.00018942,2]
[338370656,1726567849237,-255.649991,0.00018942,2]
[338370657,1726567849246,-255.649991,0.00018942,2]
[338370658,1726567849256,-269.725879,0.00018942,2]
[338370659,1726567849265,-151.0,0.00018942,2]
[338370660,1726567849277,-172.800106,0.00018942,2]
[338370661,1726567849289,-151.0,0.00018942,2]
[338370662,1726567849299,-172.800106,0.00018942,2]
[338370663,1726567849309,-224.266094,0.00018942,2]
[338370664,1726567849319,-172.800106,0.00018942,2]
[338370665,1726567849329,-172.800106,0.00018942,2]
[338370666,1726567849338,-1090.355152,0.00018942,2]
[338370667,1726567849349,-1090.355152,0.00018942,2]
[338370668,1726567849358,-1090.355152,0.00018942,2]
[338370669,1726567849368,-1090.35516084,0.00018942,2]
[338370670,1726567849377,-174.773879,0.00018942,2]
[338370671,1726567849387,-174.773879,0.00018942,2]
[338370672,1726567849396,-174.773879,0.00018942,2]
[338370673,1726567849407,-174.773879,0.00018942,2]
[338370674,1726567849417,-210.224136,0.00018942,2]
[338370675,1726567849427,-210.224136,0.00018942,2]
[338370676,1726567849439,-210.224136,0.00018942,2]
[338370677,1726567849449,-210.224141,0.00018942,2]
[338370678,1726567849459,-151.0,0.00018942,2]
[338370679,1726567849469,-151.0,0.00018942,2]
[338370680,1726567849479,-1000.0,0.00018942,2]
[338370681,1726567849488,-1000.0,0.00018942,2]
[338370682,1726567849497,-1000.0,0.00018942,2]
[338370683,1726567849506,-1000.0,0.00018942,2]
[338370684,1726567849515,-1000.0,0.00018942,2]
[338370685,1726567849524,-1000.0,0.00018942,2]
[338370686,1726567849534,-1000.0,0.00018942,2]
[338370687,1726567849543,-1000.0,0.00018942,2]
[338370688,1726567849553,-1000.0,0.00018942,2]
[338370689,1726567849564,-1000.0,0.00018942,2]
[338370690,1726567849574,-1000.0,0.00018942,2]
[338370691,1726567849583,-1000.0,0.00018942,2]
[338370692,1726567849593,-1000.0,0.00018942,2]
[338370693,1726567849602,-1000.0,0.00018942,2]
[338370694,1726567849612,-1000.0,0.00018942,2]
[338370695,1726567849622,-1000.0,0.00018942,2]
[338370696,1726567849631,-1000.0,0.00018942,2]
[338370697,1726567849641,-1000.0,0.00018942,2]
[338370698,1726567849650,-1000.0,0.00018942,2]
[338370699,1726567849659,-1000.0,0.00018942,2]
[338370700,1726567849670,-1000.0,0.00018942,2]
[338370701,1726567849679,-1000.0,0.00018942,2]
[338370702,1726567849689,-1000.0,0.00018942,2]
[338370703,1726567849698,-1000.0,0.00018942,2]
[338370704,1726567849707,-1000.0,0.00018942,2]
[338370705,1726567849717,-1000.0,0.00018942,2]
[338370706,1726567849726,-1000.0,0.00018942,2]
[338370707,1726567849745,-1000.0,0.00018942,2]
[338370708,1726567849756,-1000.0,0.00018942,2]
[338370709,1726567849767,-1000.0,0.00018942,2]
[338370710,1726567849778,-1000.0,0.00018942,2]
[338370711,1726567849789,-1000.0,0.00018942,2]
[338370712,1726567849800,-1000.0,0.00018942,2]
[338370713,1726567849811,-1000.0,0.00018942,2]
[338370714,1726567849824,-1000.0,0.00018942,2]
[338370715,1726567849836,-1000.0,0.00018942,2]
[338370716,1726567849850,-1000.0,0.00018942,2]
[338370717,1726567849862,-1000.0,0.00018942,2]
[338370718,1726567849873,-1000.0,0.00018942,2]
[338370719,1726567849883,-1000.0,0.00018942,2]
[338370720,1726567849897,-1000.0,0.00018942,2]
[338370721,1726567849909,-1000.0,0.00018942,2]
[338370722,1726567849920,-1000.0,0.00018942,2]
[338370723,1726567849933,-1000.0,0.00018942,2]
[338370724,1726567849944,-1000.0,0.00018942,2]
[338370725,1726567849956,-1000.0,0.00018942,2]
[338370726,1726567849967,-1000.0,0.00018942,2]
[338370727,1726567849977,-1000.0,0.00018942,2]
[338370728,1726567849987,-1000.0,0.00018942,2]
[338370729,1726567849997,-1000.0,0.00018942,2]
[338370730,1726567850007,-1000.0,0.00018942,2]
[338370731,1726567850016,-1000.0,0.00018942,2]
[338370732,1726567850026,-1000.0,0.00018942,2]
[338370733,1726567850035,-1000.0,0.00018942,2]
[338370734,1726567850046,-1000.0,0.00018942,2]
[338370735,1726567850055,-1000.0,0.00018942,2]
[338370736,1726567850065,-1000.0,0.00018942,2]
[338370737,1726567850075,-1000.0,0.00018942,2]
[338370738,1726567850085,-1000.0,0.00018942,2]
[338370739,1726567850095,-1000.0,0.00018942,2]
[338370740,1726567850105,-1000.0,0.00018942,2]
[338370741,1726567850115,-1000.0,0.00018942,2]
[338370742,1726567850124,-1000.0,0.00018942,2]
[338370743,1726567850134,-1000.0,0.00018942,2]
[338370744,1726567850144,-835.354883,0.00018942,2]
[338370745,1726567850154,-3205.845086,0.00018942,2]
[338370746,1726567850164,-3205.845086,0.00018942,2]
[338370747,1726567850174,-3205.845086,0.00018942,2]
[338370748,1726567850184,-3205.845086,0.00018942,2]
[338370749,1726567850194,-151.0,0.00018949,2]
[338370750,1726567850204,-151.0,0.00018949,2]
[338370751,1726567850214,-172.800106,0.00018949,2]
[338370752,1726567850223,-172.800106,0.00018949,2]
[338370753,1726567850234,-174.773879,0.00018949,2]
[338370754,1726567850243,-174.773879,0.00018949,2]
[338370755,1726567850252,-192.0,0.0001895,2]
[338370756,1726567850264,-151.0,0.0001895,2]
[338370757,1726567850273,-151.0,0.0001895,2]
[338370758,1726567850284,-151.0,0.0001895,2]
[338370759,1726567850294,-151.0,0.0001895,2]
[338370760,1726567850304,-151.0,0.0001895,2]
[338370761,1726567850314,-151.0,0.0001895,2]
[338370762,1726567850324,-279.087951,0.0001895,2]
[338370763,1726567850334,-155.207639,0.0001895,2]
[338370764,1726567850345,-155.207639,0.0001895,2]
[338370765,1726567850355,-155.207639,0.0001895,2]
[338370766,1726567850370,-155.207639,0.0001895,2]
[338370767,1726567850382,-155.207639,0.0001895,2]
[338370768,1726567850393,-155.207639,0.0001895,2]
[338370769,1726567850403,-155.207639,0.0001895,2]
[338370770,1726567850415,-155.207639,0.0001895,2]
[338370771,1726567850426,-151.0,0.0001895,2]
[338370772,1726567850437,-151.0,0.0001895,2]
[338370773,1726567850448,-151.0,0.0001895,2]
[338370774,1726567850460,-151.0,0.0001895,2]
[338370775,1726567850471,-1820.420461,0.0001895,2]
[338370776,1726567850484,-1820.420461,0.0001895,2]
[338370777,1726567850496,-1820.420461,0.0001895,2]
[338370778,1726567850506,-1820.420461,0.0001895,2]
[338370779,1726567850517,-1820.420461,0.0001895,2]
[338370780,1726567850529,-1820.420461,0.0001895,2]
[338370781,1726567850541,-152.046859,0.0001895,2]
[338370782,1726567850551,-154.154453,0.0001895,2]
[338370783,1726567850562,-572.724514,0.0001895,2]
[338370784,1726567850572,-572.724514,0.0001895,2]
[338370785,1726567850582,-572.724514,0.0001895,2]
[338370786,1726567850592,-572.724514,0.0001895,2]
[338370787,1726567850603,-572.724514,0.0001895,2]
[338370788,1726567850613,-572.724514,0.0001895,2]
[338370789,1726567850623,-255.649991,0.0001895,2]
[338370790,1726567850632,-255.649991,0.0001895,2]
[338370791,1726567850643,-255.649991,0.0001895,2]
[338370792,1726567850653,-151.0,0.0001895,2]
[338370793,1726567850663,-255.649991,0.0001895,2]
[338370794,1726567850673,-151.0,0.0001895,2]
[338370795,1726567850683,-255.649991,0.0001895,2]
[338370796,1726567850693,-255.649991,0.0001895,2]
[338370797,1726567850703,-255.649991,0.0001895,2]
[338370798,1726567850713,-255.649991,0.0001895,2]
[338370799,1726567850723,-255.649991,0.0001895,2]
[338370800,1726567850732,-255.64999,0.0001895,2]
[338370801,1726567850742,-151.0,0.0001895,2]
[338370802,1726567850752,-172.800106,0.0001895,2]
[338370803,1726567850762,-151.0,0.0001895,2]
[338370804,1726567850772,-151.0,0.0001895,2]
[338370805,1726567850781,-172.800106,0.0001895,2]
[338370806,1726567850791,-172.800106,0.0001895,2]
[338370807,1726567850801,-172.800106,0.0001895,2]
[338370808,1726567850810,-172.800106,0.0001895,2]
[338370809,1726567850820,-172.800097,0.0001895,2]
[338370810,1726567850830,-174.773879,0.0001895,2]
[338370811,1726567850840,-174.773879,0.0001895,2]
[338370812,1726567850850,-174.773879,0.0001895,2]
[338370813,1726567850860,-174.773879,0.0001895,2]
[338370814,1726567850870,-174.773879,0.0001895,2]
[338370815,1726567850882,-174.773877,0.0001895,2]
[338370816,1726567850894,-3000.0,0.0001895,2]
[338370817,1726567850906,-151.0,0.00018953,2]
[338370818,1726567850916,-151.0,0.00018953,2]
[338370819,1726567850927,-151.0,0.00018953,2]
[338370820,1726567850938,-151.0,0.00018953,2]
[338370821,1726567850951,-155.207639,0.00018953,2]
[338370822,1726567850963,-155.207639,0.00018953,2]
[338370823,1726567850978,-155.207639,0.00018953,2]
[338370824,1726567850989,-155.207639,0.00018953,2]
[338370825,1726567851002,-155.207639,0.00018953,2]
[338370826,1726567851013,-155.207639,0.00018953,2]
[338370827,1726567851024,-155.207639,0.00018953,2]
[338370828,1726567851035,-155.207642,0.00018953,2]
[338370829,1726567851046,-151.0,0.00018953,2]
[338370830,1726567851057,-151.0,0.00018953,2]
[338370831,1726567851067,-265.719872,0.00018953,2]
[338370832,1726567851079,-1820.420461,0.00018953,2]
[338370833,1726567851090,-1820.420461,0.00018953,2]
[338370834,1726567851101,-1820.420461,0.00018953,2]
[338370835,1726567851111,-1820.420461,0.00018953,2]
[338370836,1726567851121,-1820.420461,0.00018953,2]
[338370837,1726567851133,-1820.420461,0.00018953,2]
[338370838,1726567851145,-572.724514,0.00018953,2]
[338370839,1726567851156,-572.724514,0.00018953,2]
[338370840,1726567851166,-572.724514,0.00018953,2]
[338370841,1726567851176,-572.724514,0.00018953,2]
[338370842,1726567851186,-572.724514,0.00018953,2]
[338370843,1726567851195,-572.724514,0.00018953,2]
[338370844,1726567851205,-540.177178,0.00018955,2]
[338370845,1726567851215,-329.5,0.00018955,2]
[338370846,1726567851224,-1820.420461,0.0001896,2]
[338370847,1726567851234,-1820.420461,0.0001896,2]
[338370848,1726567851243,-1820.420461,0.0001896,2]
[338370849,1726567851253,-1820.420454,0.0001896,2]
[338370850,1726567851262,-572.724514,0.0001896,2]
[338370851,1726567851272,-572.724514,0.0001896,2]
[338370852,1726567851282,-572.724514,0.0001896,2]
[338370853,1726567851291,-572.724513,0.0001896,2]
[338370854,1726567851301,-3000.0,0.0001896,2]
[338370855,1726567851311,-3000.0,0.0001897,2]
[338370856,1726567851322,-500.0,0.00018973,2]
[338370857,1726567851332,-500.0,0.00018973,2]
[338370858,1726567851343,-500.68393457,0.00018973,2]
[338370859,1726567851354,-500.0,0.00018973,2]
[338370860,1726567851366,-500.0,0.00018973,2]
[338370861,1726567851376,-375.56132221,0.00018973,2]
[338370862,1726567851386,-500.0,0.00018973,2]
[338370863,1726567851395,-187.45387736,0.00018973,2]
[338370864,1726567851405,-500.0,0.00018973,2]
[338370865,1726567851415,-500.0,0.00018973,2]
[338370866,1726567851424,-500.0,0.00018973,2]
[338370867,1726567851434,-160.84831716,0.00018973,2]
[338370868,1726567851443,-500.0,0.00018973,2]
[338370869,1726567851453,-301.70782929,0.00018973,2]
[338370870,1726567851463,-500.0,0.00018973,2]
[338370871,1726567851472,-500.0,0.00018973,2]
[338370872,1726567851482,-3000.0,0.0001898,2]
[338370873,1726567851493,-910.506099,0.00018982,2]
[338370874,1726567851504,-910.506099,0.00018982,2]
[338370875,1726567851513,-151.0,0.00018982,2]
[338370876,1726567851523,-151.0,0.00018982,2]
[338370877,1726567851532,-151.0,0.00018982,2]
[338370878,1726567851542,-500.0,0.00018983,2]
[338370879,1726567851551,-3000.0,0.0001899,2]
[338370880,1726567851561,-151.0,0.00018993,2]
[338370881,1726567851571,-151.0,0.00018993,2]
[338370882,1726567851582,-500.0,0.00018995,2]
[338370883,1726567851591,-1000.0,0.00019,19]
[338370884,1726567851602,-523.37,0.00019,2]
[338370885,1726567851612,-153.0,0.00019,2]
[338370886,1726567851622,-3000.0,0.00019,2]
[338370887,1726567851632,-151.0,0.00019002,2]
[338370888,1726567851642,-910.506099,0.00019002,2]
[338370889,1726567851653,-910.506099,0.00019002,2]
[338370890,1726567851663,-151.0,0.00019002,2]
[338370891,1726567851673,-151.0,0.00019002,2]
[338370892,1726567851683,-151.0,0.00019002,2]
[338370893,1726567851692,-151.0,0.00019002,2]
[338370894,1726567851702,-151.0,0.00019002,2]
[338370895,1726567851711,-151.0,0.00019002,2]
[338370896,1726567851722,-50000.0,0.00019002,2]
[338370897,1726567851732,-3000.0,0.0001901,2]
[338370898,1726567851752,-151.0,0.0001902,2]
[338370899,1726567851764,-3000.0,0.0001902,2]
[338370900,1726567851774,-5532.517458,0.0001903,2]
[338370901,1726567851784,-151.0,0.00019036,2]
[338370902,1726567851795,-158.872973,0.00019036,2]
[338370903,1726567851806,-13203.01487095,0.00019046,2]
[338370904,1726567852021,2456.18,0.00025,60]
[338370905,1726567852545,623.77,0.00025,60]
[338370906,1726567854224,876.14,0.00025,60]
[338370907,1726567856059,629.04,0.00025,60]
[338370908,1726567856108,880.95,0.00025,60]
[338370909,1726567856260,500.0,0.00025,60]
[338370910,1726567856754,1941.26,0.00025,60]
[338370911,1726567858440,1062.16,0.00025,60]
[338370912,1726567858810,500.0,0.00025,60]
[338370913,1726567859331,500.0,0.00025,60]
[338370914,1726567860655,500.0,0.00025,60]
[338370915,1726567863087,864.64,0.00025,60]
[338370916,1726567864453,500.0,0.00025,60]
[338370917,1726567867562,1267.26,0.00025,60]
[338370918,1726567867657,500.0,0.00025,60]
[338370919,1726567869075,589.75,0.00025,60]
[338370920,1726567870477,500.0,0.00025,60]
[338370921,1726567874859,500.0,0.00025,60]
[338370922,1726567875505,761.97,0.00025,60]
[338370923,1726567876424,1898.68,0.00025,60]
[338370924,1726567876852,1560.45,0.00025,60]
[338370925,1726567877221,4021.41,0.00025,60]
[338370926,1726567878057,500.0,0.00025,60]
[338370927,1726567880123,10073.22,0.00025,60]
[338370928,1726567880591,500.0,0.00025,60]
[338370929,1726567881821,1531.43,0.00025,60]
[338370930,1726567882580,1021.13,0.00025,60]
[338370931,1726567883525,500.0,0.00025,60]
[338370932,1726567885308,1349.73,0.00025,60]
[338370933,1726567885381,3143.14,0.00025,60]
[338370934,1726567886414,2494.94,0.00025,60]
[338370935,1726567888831,500.0,0.00025,60]
[338370936,1726567889854,500.0,0.00025,60]
[338370937,1726567890327,500.0,0.00025,60]
[338370938,1726567890845,500.0,0.00025,60]
[338370939,1726567896148,500.0,0.00025,60]
[338370940,1726567896201,515.77,0.00025,60]
[338370941,1726567896639,676.86,0.00025,60]
[338370942,1726567898518,2737.92,0.00025,60]
[338370943,1726567898666,5222.55,0.00025,60]
[338370944,1726567899113,779.88,0.00025,60]
[338370945,1726567899815,500.0,0.00025,60]
[338370946,1726567901300,209.93888161,0.00025,60]
[338370947,1726567903511,2272.7,0.00025,60]
[338370948,1726567905191,500.0,0.00025,60]
[338370949,1726567906792,500.0,0.00025,60]
[338370950,1726567906841,2516.71,0.00025,60]
[338370951,1726567906899,1414.53,0.00025,60]
[338370952,1726567907102,500.0,0.00025,60]
[338370953,1726567907751,500.0,0.00025,60]
[338370954,1726567908168,1461.2,0.00025,60]
[338370956,1726567909104,560.25,0.00025,60]
[338370957,1726567910005,600.44,0.00025,60]
[338370958,1726567911934,2747.08,0.00025,60]
[338370959,1726567912482,588.35048997,0.00025,60]
[338370960,1726567915367,500.0,0.00025,60]
[338370961,1726567916686,1891.09,0.00025,60]
[338370962,1726567918033,500.0,0.00025,60]
[338370963,1726567918251,633.03,0.00025,60]
[338370964,1726567919640,1970.37,0.00025,60]
[338370965,1726567920396,2454.5,0.00025,60]
[338370966,1726567923005,500.0,0.00025,60]
[338370967,1726567925034,500.0,0.00025,60]
[338370968,1726567925712,2660.42,0.00025,60]
[338370969,1726567927807,500.0,0.00025,60]
[338370970,1726567928232,500.0,0.00025,60]
[338370971,1726567928424,667.73,0.00025,60]
[338370972,1726567929185,500.0,0.00025,60]
[338370974,1726567932438,500.0,0.00025,60]
[338370975,1726567933930,2218.89,0.00025,60]
[338370976,1726567934530,512.80104563,0.00025,60]
[338370977,1726567934576,500.0,0.00025,60]
[338370978,1726567937162,500.0,0.00025,60]
[338370979,1726567937745,2293.92,0.00025,60]
[338370980,1726567938910,542.97175287,0.00025,60]
[338370981,1726567939217,184.27028845,0.00025,60]
[338370982,1726567939266,500.0,0.00025,60]
[338370983,1726567939630,16516.35,0.00025,60]
[338370984,1726567940091,500.0,0.00025,60]
[338370985,1726567940141,500.0,0.00025,60]
[338370986,1726567940859,500.0,0.00025,60]
[338370987,1726567942234,2201.36,0.00025,60]
[338370988,1726567942605,500.0,0.00025,60]
[338370989,1726567943007,2235.43,0.00025,60]
[338370990,1726567943497,1021.16,0.00025,60]
[338370991,1726567947054,510.68,0.00025,60]
[338370992,1726567947229,500.0,0.00025,60]
[338370993,1726567948615,1459.14,0.00025,60]
[338370994,1726567950425,500.0,0.00025,60]
[338370995,1726567950530,1419.96,0.00025,60]
[338370996,1726567951974,500.0,0.00025,60]
[338370997,1726567953178,18154.12,0.00025,60]
[338370998,1726567953494,1004.63,0.00025,60]
[338370999,1726567953740,3401.14,0.00025,60]
[338371001,1726567954515,510.83,0.00025,60]
[338371002,1726567955352,500.0,0.00025,60]
[338371003,1726567955683,500.0,0.00025,60]
[338371004,1726567955747,500.0,0.00025,60]
[338371005,1726567955988,3343.46,0.00025,60]
[338371007,1726567957762,500.0,0.00025,60]
[338371008,1726567958286,500.0,0.00025,60]
[338371009,1726567959811,500.0,0.00025,60]
[338371010,1726567960640,3264.85,0.00025,60]
[338371011,1726567961580,500.0,0.00025,60]
[338371012,1726567961772,500.0,0.00025,60]
[338371013,1726567962343,1937.48,0.00025,60]
[338371014,1726567963476,162.521938,0.00013699,2]
[338371015,1726567963747,500.0,0.00025,60]
[338371016,1726567963908,2651.79,0.00025,60]
[338371017,1726567964592,785.24,0.00025,60]
[338371018,1726567965193,500.0,0.00025,60]
[338371019,1726567965775,500.0,0.00025,60]
[338371020,1726567967566,500.0,0.00025,60]
[338371021,1726567967927,500.0,0.00025,60]
[338371022,1726567968166,1425.88,0.00025,60]
[338371023,1726567969574,500.0,0.00025,60]
[338371024,1726567971661,2057.16,0.00025,60]
[338371025,1726567973260,500.0,0.00025,60]
[338371026,1726567975291,500.0,0.00025,60]
[338371027,1726567975897,1133.3,0.00025,60]
[338371028,1726567976352,500.0,0.00025,60]
[338371029,1726567978274,500.0,0.00025,60]
[338371030,1726567978520,500.0,0.00025,60]
[338371031,1726567980155,500.0,0.00025,60]
[338371032,1726567980207,1011.73,0.00025,60]
[338371033,1726567980833,500.0,0.00025,60]
[338371034,1726567980884,505.62587436,0.00025,60]
[338371035,1726567980932,500.0,0.00025,60]
[338371036,1726567983359,1278.0,0.00025,60]
[338371037,1726567984184,500.0,0.00025,60]
[338371038,1726567984569,938.53,0.00025,60]
[338371039,1726567986280,500.0,0.00025,60]
[338371040,1726567986617,560.69,0.00025,60]
[338371041,1726567986772,1361.18,0.00025,60]
[338371042,1726567987068,2000.31,0.00025,60]
[338371043,1726567989521,500.0,0.00025,60]
[338371044,1726567990831,500.0,0.00025,60]